bitfinex-derivatives/quotes_BTCF0:USTF0_20241221
["timestamp","ask_amount","ask_price","bid_price","bid_amount"]
[1734815120555,0.0513795,97546.0,97539.0,0.3608]
[1734815120953,0.051276,97545.0,97539.0,0.3608]
[1734815121649,0.051276,97545.0,97539.0,0.412079]
[1734815122053,0.053276,97545.0,97539.0,0.412079]
[1734815122257,0.002,97545.0,97539.0,0.3608]
[1734815122457,0.051278,97541.0,97539.0,0.3608]
[1734815123156,0.051278,97541.0,97535.0,0.051281]
[1734815123352,0.004,97545.0,97535.0,0.051281]
[1734815123558,0.05128,97538.0,97536.0,0.3608]
[1734815123856,0.05128,97538.0,97536.0,0.41208]
[1734815124465,0.05128,97538.0,97536.0,0.05128]
[1734815124759,0.051281,97536.0,97530.0,0.051284]
[1734815125156,0.051281,97536.0,97531.0,0.051283]
[1734815126056,0.17299219,97536.0,97532.0,0.051283]
[1734815126558,0.051281,97535.0,97532.0,0.051283]
[1734815127360,0.17299219,97535.0,97532.0,0.051283]
[1734815128659,0.12171119,97535.0,97527.0,0.3608]
[1734815128971,0.051283,97531.0,97529.0,0.051284]
[1734815130371,0.052283,97531.0,97529.0,0.051284]
[1734815131269,0.053283,97531.0,97529.0,0.051284]
[1734815131858,0.002,97531.0,97529.0,0.051284]
[1734815134174,0.001,97531.0,97529.0,0.053284]
[1734815134473,0.12171119,97543.0,97542.0,0.051278]
[1734815136573,0.17579877,97543.0,97542.0,0.051278]
[1734815136774,0.05408758,97543.0,97542.0,0.051278]
[1734815137074,0.05408758,97543.0,97542.0,0.052278]
[1734815137459,0.05408758,97543.0,97542.0,0.051278]
[1734815138167,0.06528244,97543.0,97542.0,0.051278]
[1734815138774,0.02219392,97543.0,97542.0,0.051278]
[1734815138970,0.01401174,97543.0,97542.0,0.051278]
[1734815139284,0.00481058,97543.0,97542.0,0.051278]
[1734815139486,0.01401158,97543.0,97542.0,0.051278]
[1734815139664,0.02320656,97543.0,97542.0,0.051278]
[1734815140184,0.02220656,97543.0,97542.0,0.051278]
[1734815140779,0.17335391,97543.0,97542.0,0.051278]
[1734815140977,0.17435391,97543.0,97542.0,0.051278]
[1734815141566,0.17335391,97543.0,97542.0,0.051278]
[1734815141878,0.17334442,97543.0,97542.0,0.052278]
[1734815142079,0.16514944,97543.0,97542.0,0.052278]
[1734815143383,0.00281058,97543.0,97542.0,0.052278]
[1734815144982,0.12471905,97543.0,97542.0,0.052278]
[1734815146182,0.01302108,97543.0,97542.0,0.052278]
[1734815146779,0.00281058,97543.0,97542.0,0.052278]
[1734815147586,0.12471905,97543.0,97542.0,0.052278]
[1734815148675,0.13492955,97543.0,97542.0,0.052278]
[1734815148880,0.12471905,97543.0,97542.0,0.052278]
[1734815149081,0.00281058,97543.0,97542.0,0.052278]
[1734815149284,0.01302108,97543.0,97542.0,0.052278]
[1734815149486,0.01300966,97543.0,97542.0,0.052278]
[1734815149879,0.00281058,97543.0,97542.0,0.052278]
[1734815150079,0.0130087,97543.0,97542.0,0.052278]
[1734815150489,0.12471905,97543.0,97542.0,0.052278]
[1734815150989,0.13491717,97543.0,97542.0,0.052278]
[1734815152094,0.0130087,97543.0,97542.0,0.052278]
[1734815152483,0.01300602,97543.0,97542.0,0.052278]
[1734815152991,0.00281058,97543.0,97542.0,0.052278]
[1734815153394,0.15225085,97546.0,97542.0,0.001]
[1734815153689,0.10224735,97547.0,97545.0,0.051276]
[1734815154080,0.05234735,97547.0,97545.0,0.051276]
[1734815154482,0.18266591,97553.0,97552.0,0.051272]
[1734815154776,0.18266591,97553.0,97552.0,0.412072]
[1734815154981,0.1218973,97558.0,97557.0,0.05127]
[1734815155187,0.18266591,97571.0,97557.0,0.05127]
[1734815155188,0.18266591,97571.0,97557.0,0.41207]
[1734815155383,0.18266591,97571.0,97570.0,0.412063]
[1734815156293,0.051254,97587.0,97585.0,0.051255]
[1734815156294,0.06115048,97586.0,97585.0,0.051255]
[1734815156493,0.05101593,97586.0,97585.0,0.051255]
[1734815157290,0.05929857,97587.0,97585.0,0.051255]
[1734815157488,0.007,97586.0,97570.0,0.413063]
[1734815157992,0.013,97586.0,97585.0,0.052255]
[1734815158582,0.013,97586.0,97585.0,0.051255]
[1734815158583,0.007,97586.0,97585.0,0.051255]
[1734815158890,0.006,97586.0,97585.0,0.051255]
[1734815159091,0.006,97586.0,97585.0,0.053255]
[1734815159492,0.006,97586.0,97585.0,0.414055]
[1734815159693,0.006,97586.0,97585.0,0.413055]
[1734815159896,0.013,97586.0,97585.0,0.414055]
[1734815161898,0.006,97586.0,97585.0,0.413055]
[1734815162101,0.012,97586.0,97585.0,0.414055]
[1734815166894,0.012,97586.0,97585.0,0.053255]
[1734815167095,0.012,97586.0,97585.0,0.414055]
[1734815168201,0.012,97586.0,97585.0,0.002]
[1734815169095,0.05126,97575.0,97574.0,0.3608]
[1734815170202,0.012,97586.0,97567.0,0.051264]
[1734815170203,0.3608,97579.0,97567.0,0.051264]
[1734815170390,0.051264,97568.0,97567.0,0.051264]
[1734815170595,0.051265,97566.0,97565.0,0.3608]
[1734815171810,0.05127,97557.0,97556.0,0.05127]
[1734815172006,0.051266,97564.0,97553.0,0.3608]
[1734815172301,0.0303,97563.0,97553.0,0.3608]
[1734815173000,0.051271,97555.0,97553.0,0.412071]
[1734815173203,0.0622,97554.0,97553.0,0.3608]
[1734815173506,0.0622,97554.0,97539.0,0.3616]
[1734815173507,0.0622,97554.0,97551.0,0.051273]
[1734815173890,0.0622,97554.0,97551.0,0.412073]
[1734815174098,0.0622,97554.0,97551.0,0.051273]
[1734815174503,0.07042232,97554.0,97551.0,0.051273]
[1734815174710,0.051272,97553.0,97551.0,0.412073]
[1734815175903,0.051272,97553.0,97551.0,0.3608]
[1734815176109,0.051273,97551.0,97539.0,0.3608]
[1734815176402,0.051278,97542.0,97539.0,0.051279]
[1734815176603,0.051278,97542.0,97541.0,0.3608]
[1734815177605,0.052278,97542.0,97541.0,0.3608]
[1734815177991,0.051278,97542.0,97541.0,0.3608]
[1734815178205,0.052278,97542.0,97541.0,0.3698]
[1734815180603,0.052278,97542.0,97541.0,0.009]
[1734815182108,0.0605435,97542.0,97541.0,0.009]
[1734815183525,0.0605435,97542.0,97520.0,0.3608]
[1734815183811,0.051288,97522.0,97520.0,0.3608]
[1734815184007,0.12117551,97530.0,97518.0,0.00153803]
[1734815184200,0.05129,97520.0,97518.0,0.00153803]
[1734815185303,0.05129,97520.0,97518.0,0.00353803]
[1734815186013,0.05129,97520.0,97518.0,0.002]
[1734815186201,0.051293,97512.0,97511.0,0.00013211]
[1734815186397,0.051293,97512.0,97498.0,0.18404447]
[1734815186703,0.0513,97499.0,97498.0,0.18404447]
[1734815187306,0.051298,97503.0,97486.0,0.3608]
[1734815187506,0.12117551,97500.0,97496.0,0.051301]
[1734815187702,0.0513,97500.0,97496.0,0.051301]
[1734815187896,0.00011261,97502.0,97498.0,0.009]
[1734815188114,0.001,97499.0,97498.0,0.012]
[1734815188612,0.001,97500.0,97498.0,0.003]
[1734815189209,0.0513,97499.0,97498.0,0.003]
[1734815189809,0.001,97500.0,97496.0,0.011]
[1734815190017,0.051301,97498.0,97496.0,0.011]
[1734815190515,0.051301,97498.0,97490.0,0.051305]
[1734815191206,0.051301,97498.0,97496.0,0.009]
[1734815191512,0.051301,97498.0,97496.0,0.004]
[1734815191717,0.052301,97498.0,97496.0,0.004]
[1734815192804,0.051303,97493.0,97490.0,0.065305]
[1734815193414,0.051303,97493.0,97490.0,0.056305]
[1734815193621,0.051303,97493.0,97490.0,0.051305]
[1734815194117,0.001,97493.0,97492.0,0.051304]
[1734815195924,0.001,97493.0,97492.0,0.056304]
[1734815196931,0.001,97493.0,97492.0,0.065304]
[1734815199411,0.001,97493.0,97492.0,0.014]
[1734815202523,0.051303,97494.0,97492.0,0.008]
[1734815202725,0.051303,97494.0,97492.0,0.004]
[1734815203024,0.001,97493.0,97492.0,0.001]
[1734815203426,0.002,97493.0,97490.0,0.051305]
[1734815203725,0.001,97493.0,97490.0,0.051305]
[1734815203924,0.051304,97492.0,97490.0,0.051305]
[1734815205419,0.051305,97489.0,97488.0,0.3608]
[1734815205825,0.05131,97480.0,97478.0,0.05284961]
[1734815206729,0.051307,97486.0,97482.0,0.051309]
[1734815206931,0.051307,97486.0,97483.0,0.051308]
[1734815207122,0.051308,97485.0,97483.0,0.412108]
[1734815208821,0.06157104,97485.0,97483.0,0.3608]
[1734815209027,0.06157104,97485.0,97483.0,0.3628]
[1734815209425,0.051308,97485.0,97483.0,0.3688]
[1734815209623,0.0637,97484.0,97483.0,0.3688]
[1734815209828,0.0637,97484.0,97483.0,0.002]
[1734815210030,0.0637,97484.0,97483.0,0.008]
[1734815210227,0.09751562,97484.0,97483.0,0.008]
[1734815210930,0.09851562,97484.0,97483.0,0.006]
[1734815211240,0.051321,97460.0,97450.0,0.36233916]
[1734815211432,0.06159629,97460.0,97450.0,0.36233916]
[1734815211830,0.06171881,97460.0,97450.0,0.36233916]
[1734815212445,0.06271881,97460.0,97459.0,0.007109]
[1734815212637,0.11270815,97460.0,97459.0,0.007109]
[1734815212829,0.11370815,97460.0,97459.0,0.016109]
[1734815213145,0.11370818,97460.0,97459.0,0.01597421]
[1734815214137,0.12238716,97460.0,97459.0,0.015]
[1734815214839,0.12138716,97460.0,97459.0,0.009]
[1734815215136,0.051325,97452.0,97450.0,0.00153916]
[1734815215337,0.06165791,97452.0,97450.0,0.00153916]
[1734815216039,0.06165791,97452.0,97442.0,0.05133]
[1734815216339,0.06165791,97452.0,97451.0,0.00435]
[1734815216541,0.06265791,97452.0,97451.0,0.00435]
[1734815217030,0.06265791,97452.0,97451.0,0.00835]
[1734815217338,0.06265791,97452.0,97441.0,0.0633]
[1734815217643,0.05133,97442.0,97441.0,0.0633]
[1734815217846,0.01033291,97442.0,97429.0,0.3608]
[1734815218157,0.01033291,97441.0,97429.0,0.3608]
[1734815218348,0.01033291,97440.0,97429.0,0.3608]
[1734815218541,0.36136001,97447.0,97429.0,0.3608]
[1734815218542,0.051335,97434.0,97429.0,0.3608]
[1734815218844,0.01033291,97433.0,97429.0,0.3608]
[1734815219046,0.051336,97431.0,97429.0,0.3608]
[1734815219237,0.051342,97419.0,97418.0,0.0964]
[1734815219544,0.051343,97417.0,97408.0,0.051348]
[1734815219759,0.051343,97417.0,97402.0,0.3608]
[1734815219760,0.051343,97417.0,97410.0,0.3623398]
[1734815219941,0.01033291,97416.0,97411.0,0.051346]
[1734815220333,0.01033291,97416.0,97414.0,0.051345]
[1734815220532,0.001,97419.0,97417.0,0.051343]
[1734815220728,0.001,97419.0,97418.0,0.3608]
[1734815220934,0.01133572,97419.0,97418.0,0.3608]
[1734815221344,0.01133492,97419.0,97418.0,0.3608]
[1734815221646,0.01033492,97419.0,97418.0,0.3608]
[1734815221838,0.01133492,97419.0,97418.0,0.3608]
[1734815222144,0.001,97419.0,97418.0,0.3608]
[1734815222336,0.002,97419.0,97418.0,0.3608]
[1734815223138,0.001,97419.0,97418.0,0.3608]
[1734815223341,0.001,97419.0,97418.0,0.3658]
[1734815226451,0.001,97419.0,97418.0,0.005]
[1734815226841,0.001,97419.0,97410.0,0.3623398]
[1734815227942,0.001,97419.0,97418.0,0.3608]
[1734815228145,0.002,97419.0,97418.0,0.3608]
[1734815228842,0.002,97419.0,97418.0,0.412143]
[1734815229449,0.001,97419.0,97418.0,0.412143]
[1734815229639,0.001,97419.0,97418.0,0.415143]
[1734815231745,0.0113193,97419.0,97418.0,0.415143]
[1734815232055,0.01137219,97419.0,97418.0,0.415143]
[1734815232558,0.01137219,97419.0,97418.0,0.003]
[1734815232950,0.02799562,97419.0,97418.0,0.003]
[1734815233254,0.0370506,97419.0,97418.0,0.003]
[1734815234058,0.0360506,97419.0,97415.0,8.646e-05]
[1734815234265,0.06139698,97419.0,97418.0,0.002]
[1734815234556,0.08854767,97419.0,97418.0,0.002]
[1734815235553,0.08854767,97419.0,97415.0,8.646e-05]
[1734815235554,0.08854767,97419.0,97415.0,0.00308646]
[1734815235744,0.02715069,97418.0,97415.0,0.00308646]
[1734815235943,0.02715069,97417.0,97415.0,0.00308646]
[1734815236251,0.02715069,97416.0,97415.0,0.00308646]
[1734815236455,0.02715069,97416.0,97415.0,8.646e-05]
[1734815236846,0.01044257,97416.0,97415.0,8.646e-05]
[1734815237256,0.01044257,97416.0,97415.0,0.00308646]
[1734815237748,0.01144257,97416.0,97415.0,0.00308646]
[1734815240958,0.001,97416.0,97415.0,0.00308646]
[1734815243662,0.001,97416.0,97415.0,0.30308646]
[1734815243863,0.12127857,97430.0,97415.0,0.30308646]
[1734815243864,0.10107716,97425.0,97424.0,0.05134]
[1734815244058,0.10107716,97425.0,97424.0,0.41214]
[1734815244859,0.10207716,97425.0,97424.0,0.41214]
[1734815245462,0.10207716,97425.0,97424.0,0.41314]
[1734815246064,0.09175161,97425.0,97424.0,0.41314]
[1734815246561,0.001,97425.0,97424.0,0.41314]
[1734815247763,8.624e-05,97430.0,97424.0,0.69998803]
[1734815247961,8.624e-05,97430.0,97429.0,0.3608]
[1734815249061,8.624e-05,97430.0,97429.0,0.712137]
[1734815249565,8.624e-05,97430.0,97429.0,0.412137]
[1734815249770,0.00108624,97430.0,97429.0,0.412137]
[1734815250369,8.624e-05,97430.0,97429.0,0.412137]
[1734815250952,0.00108624,97430.0,97429.0,0.412137]
[1734815251162,0.00108624,97430.0,97429.0,0.414137]
[1734815252964,0.00108624,97430.0,97429.0,0.42352341]
[1734815254169,0.01133635,97430.0,97429.0,0.414137]
[1734815254369,0.00108624,97430.0,97429.0,0.414137]
[1734815255070,0.00108624,97430.0,97429.0,0.412137]
[1734815255967,0.01937665,97450.0,97449.0,0.051326]
[1734815256266,0.15156506,97453.0,97450.0,0.051326]
[1734815256567,0.0101824,97452.0,97450.0,0.051326]
[1734815256864,0.01028533,97451.0,97450.0,0.051326]
[1734815257369,0.05133,97442.0,97441.0,0.3608]
[1734815257562,0.06966039,97442.0,97441.0,0.3608]
[1734815257766,0.06965652,97442.0,97441.0,0.3608]
[1734815258065,0.06965652,97442.0,97430.0,0.051336]
[1734815258263,0.06965652,97442.0,97429.0,0.3608]
[1734815258264,0.01832652,97441.0,97429.0,0.3608]
[1734815258465,0.01832652,97440.0,97437.0,0.051333]
[1734815258668,0.01832652,97439.0,97437.0,0.051333]
[1734815258873,0.01832652,97438.0,97437.0,0.051333]
[1734815259859,0.01832652,97438.0,97437.0,0.412133]
[1734815260460,0.07265852,97438.0,97437.0,0.412133]
[1734815261172,0.07565852,97438.0,97437.0,0.412133]
[1734815261366,0.19711937,97438.0,97437.0,0.412133]
[1734815261758,0.19711937,97438.0,97437.0,0.051333]
[1734815261965,0.19711937,97438.0,97437.0,0.412133]
[1734815262766,0.18897138,97438.0,97437.0,0.412133]
[1734815263159,0.17879285,97438.0,97437.0,0.412133]
[1734815263562,0.12746085,97438.0,97437.0,0.412133]
[1734815264467,0.006,97438.0,97437.0,0.412133]
[1734815269678,0.01616073,97438.0,97437.0,0.412133]
[1734815270178,0.006,97438.0,97437.0,0.412133]
[1734815271873,0.01614789,97438.0,97437.0,0.412133]
[1734815272272,0.006,97438.0,97437.0,0.412133]
[1734815273570,0.006,97438.0,97429.0,0.54563965]
[1734815273571,0.02434796,97438.0,97430.0,0.051336]
[1734815273775,0.051336,97431.0,97430.0,0.23545565]
[1734815273974,0.051336,97431.0,97430.0,0.18411965]
[1734815274981,0.051336,97431.0,97424.0,0.24567503]
[1734815274982,0.051339,97425.0,97424.0,0.21161977]
[1734815275182,0.05952865,97425.0,97424.0,0.21161977]
[1734815275375,0.051339,97425.0,97424.0,0.21161977]
[1734815275576,0.051343,97417.0,97416.0,0.18451612]
[1734815275777,0.05953273,97417.0,97416.0,0.18451612]
[1734815276077,0.05953289,97417.0,97416.0,0.18451612]
[1734815276582,0.051343,97417.0,97416.0,0.18451612]
[1734815276772,0.052343,97417.0,97416.0,0.18451612]
[1734815276968,0.06248839,97417.0,97416.0,0.18651612]
[1734815277186,0.06248839,97417.0,97416.0,0.002]
[1734815279096,0.052343,97417.0,97416.0,0.002]
[1734815279275,0.06248651,97417.0,97416.0,0.002]
[1734815279986,0.01114351,97417.0,97410.0,0.0015398]
[1734815280175,0.051347,97411.0,97410.0,0.0015398]
[1734815280578,0.06149051,97411.0,97410.0,0.0015398]
[1734815280779,0.05135,97404.0,97402.0,0.051351]
[1734815280978,0.0634,97403.0,97402.0,0.051351]
[1734815281478,0.051351,97402.0,97393.0,0.051356]
[1734815281677,0.082651,97402.0,97393.0,0.051356]
[1734815282286,0.082651,97402.0,97391.0,0.3608]
[1734815282986,0.082651,97402.0,97400.0,0.102]
[1734815283281,0.082651,97402.0,97401.0,0.051352]
[1734815283282,0.0313,97402.0,97401.0,0.051352]
[1734815284287,0.0323,97402.0,97401.0,0.051352]
[1734815284984,0.083652,97402.0,97400.0,0.46352]
[1734815285180,0.083652,97402.0,97400.0,0.4628]
[1734815285378,0.083652,97402.0,97401.0,0.002]
[1734815286189,0.083652,97402.0,97400.0,0.4636]
[1734815286483,0.083652,97402.0,97400.0,0.4628]
[1734815286886,0.083652,97402.0,97400.0,0.4608]
[1734815287092,0.083652,97402.0,97401.0,0.002]
[1734815288585,0.083652,97402.0,97400.0,0.102]
[1734815289382,0.083652,97402.0,97382.0,0.00154019]
[1734815289585,0.05136,97387.0,97382.0,0.00154019]
[1734815289786,0.05136,97387.0,97384.0,0.051361]
[1734815290996,0.0668,97387.0,97384.0,0.051361]
[1734815291291,0.05136,97387.0,97384.0,0.051361]
[1734815291684,0.001,97387.0,97385.0,0.05136]
[1734815291991,0.002,97387.0,97385.0,0.05136]
[1734815292590,0.001,97387.0,97385.0,0.05136]
[1734815293492,0.06062282,97390.0,97385.0,0.05136]
[1734815293693,0.001,97387.0,97385.0,0.05136]
[1734815295089,0.06062282,97390.0,97385.0,0.05136]
[1734815295294,0.06062282,97390.0,97388.0,0.051358]
[1734815295295,0.01026482,97390.0,97388.0,0.051358]
[1734815295697,0.00926482,97390.0,97388.0,0.051358]
[1734815295986,0.01544,97392.0,97388.0,0.051358]
[1734815296385,0.001,97390.0,97388.0,0.051358]
[1734815296579,0.001,97390.0,97389.0,0.3608]
[1734815296788,0.02473015,97392.0,97389.0,0.3608]
[1734815296989,0.07608715,97392.0,97390.0,0.051358]
[1734815298090,0.06064715,97392.0,97390.0,0.051358]
[1734815298486,0.06264715,97392.0,97390.0,0.051358]
[1734815298996,0.01026216,97391.0,97390.0,0.051358]
[1734815300002,0.01026216,97391.0,97390.0,0.412158]
[1734815300796,0.01126216,97391.0,97390.0,0.412158]
[1734815301391,0.001,97391.0,97390.0,0.412158]
[1734815301905,0.12150462,97397.0,97390.0,0.712158]
[1734815302091,0.12150462,97397.0,97396.0,0.412155]
[1734815302596,0.07160462,97397.0,97396.0,0.412155]
[1734815302803,7.849e-05,97403.0,97402.0,0.051352]
[1734815302992,7.849e-05,97403.0,97402.0,0.412152]
[1734815303701,0.12148411,97416.0,97415.0,0.051345]
[1734815303891,0.12148411,97416.0,97415.0,0.412145]
[1734815304295,0.18266591,97427.0,97415.0,0.412145]
[1734815304296,0.15205827,97427.0,97420.0,0.051342]
[1734815304496,0.0317,97430.0,97421.0,0.0329]
[1734815304798,0.00161386,97422.0,97421.0,0.0329]
[1734815305391,7.367e-05,97422.0,97421.0,0.0329]
[1734815305591,0.0332,97437.0,97436.0,0.051334]
[1734815305800,0.0332,97437.0,97436.0,0.412134]
[1734815305988,0.0332,97437.0,97436.0,0.051334]
[1734815306600,0.03331725,97437.0,97436.0,0.051334]
[1734815306797,0.03831725,97437.0,97436.0,0.051334]
[1734815307294,0.04800564,97437.0,97436.0,0.051334]
[1734815307701,0.05200564,97437.0,97436.0,0.051334]
[1734815307895,0.05200564,97437.0,97432.0,0.3608]
[1734815308198,0.051342,97421.0,97416.0,0.3608]
[1734815308391,0.0638,97420.0,97416.0,0.3608]
[1734815308992,0.0638,97420.0,97418.0,0.051343]
[1734815309206,0.0314,97420.0,97418.0,0.051343]
[1734815311399,0.0354,97420.0,97418.0,0.051343]
[1734815311902,0.0344,97420.0,97418.0,0.051343]
[1734815312104,0.0374,97420.0,97418.0,0.051343]
[1734815314697,0.0374,97420.0,97399.0,0.3608]
[1734815314903,0.051348,97409.0,97406.0,0.051349]
[1734815315102,0.084449,97408.0,97407.0,0.3608]
[1734815315813,0.0331,97408.0,97407.0,0.3608]
[1734815316713,0.0341,97408.0,97407.0,0.3608]
[1734815317008,0.0341,97408.0,97407.0,0.3618]
[1734815317799,0.0341,97408.0,97407.0,0.3608]
[1734815318503,0.0331,97408.0,97407.0,0.3608]
[1734815318703,0.115449,97408.0,97396.0,0.3608]
[1734815318911,0.115449,97408.0,97403.0,0.051351]
[1734815319107,0.115449,97408.0,97396.0,0.3608]
[1734815319411,0.0351,97408.0,97406.0,0.412149]
[1734815319613,0.002,97408.0,97406.0,0.412149]
[1734815320197,0.001,97408.0,97407.0,0.051349]
[1734815320509,0.002,97408.0,97407.0,0.084349]
[1734815320907,0.001,97408.0,97407.0,0.084349]
[1734815321302,0.001,97408.0,97407.0,0.116849]
[1734815322006,0.0315,97425.0,97424.0,0.05134]
[1734815322305,0.0315,97425.0,97424.0,0.41214]
[1734815323223,0.0345,97425.0,97424.0,0.41214]
[1734815323510,0.0375,97425.0,97424.0,0.41214]
[1734815324114,0.0375,97425.0,97424.0,0.05134]
[1734815325917,0.0365,97425.0,97424.0,0.05134]
[1734815326712,0.0375,97425.0,97424.0,0.05134]
[1734815330210,0.0375,97425.0,97415.0,0.3608]
[1734815330608,0.051343,97420.0,97416.0,0.051344]
[1734815330817,0.051343,97418.0,97416.0,0.051344]
[1734815331510,0.01000713,97417.0,97416.0,0.051344]
[1734815331919,0.051343,97418.0,97416.0,0.051344]
[1734815332114,0.01000713,97417.0,97416.0,0.051344]
[1734815332816,0.01400713,97417.0,97416.0,0.051344]
[1734815333213,0.004,97417.0,97416.0,0.051344]
[1734815333413,0.01,97417.0,97416.0,0.051344]
[1734815333617,0.01,97417.0,97416.0,0.412144]
[1734815334214,0.02000713,97417.0,97404.0,0.3608]
[1734815334514,0.051348,97410.0,97407.0,0.051349]
[1734815334721,0.01000713,97409.0,97407.0,0.051349]
[1734815334922,0.01000713,97408.0,97407.0,0.051349]
[1734815335219,0.06135513,97408.0,97407.0,0.051349]
[1734815335526,0.09465513,97408.0,97407.0,0.051349]
[1734815335821,0.09466541,97408.0,97407.0,0.051349]
[1734815336013,0.09666541,97408.0,97407.0,0.051349]
[1734815336215,0.10687562,97408.0,97407.0,0.051349]
[1734815336412,0.09685821,97408.0,97407.0,0.051349]
[1734815336718,0.09785821,97408.0,97407.0,0.051349]
[1734815337225,0.089648,97408.0,97407.0,0.051349]
[1734815337525,0.051352,97402.0,97400.0,0.051352]
[1734815337729,0.0313,97401.0,97400.0,0.051352]
[1734815338312,0.051354,97397.0,97396.0,0.00153991]
[1734815338709,0.04142681,97401.0,97396.0,0.00153991]
[1734815338916,0.04142681,97401.0,97400.0,0.051353]
[1734815339131,0.01012681,97401.0,97400.0,0.051353]
[1734815339420,0.00110933,97401.0,97400.0,0.412153]
[1734815339727,0.00010933,97401.0,97400.0,0.412153]
[1734815340220,0.00110933,97401.0,97400.0,0.412153]
[1734815343516,0.00110933,97401.0,97400.0,0.051353]
[1734815343717,0.00110933,97401.0,97400.0,0.412153]
[1734815343921,0.00110933,97401.0,97400.0,0.051353]
[1734815344620,0.00110933,97401.0,97400.0,0.412153]
[1734815345629,0.00110933,97401.0,97400.0,0.051353]
[1734815345823,0.00110933,97401.0,97400.0,0.412153]
[1734815346125,0.051354,97398.0,97396.0,0.05289491]
[1734815346319,0.0328,97397.0,97396.0,0.05289491]
[1734815347219,0.00110933,97401.0,97400.0,0.051353]
[1734815347821,0.00010933,97401.0,97400.0,0.051353]
[1734815348017,0.00010933,97401.0,97400.0,0.0895359]
[1734815348419,0.1522574,97406.0,97405.0,0.05135]
[1734815348726,0.0651,97425.0,97424.0,0.05134]
[1734815350325,0.0691,97425.0,97424.0,0.05134]
[1734815351632,0.0731,97425.0,97424.0,0.05134]
[1734815351817,0.0731,97425.0,97423.0,0.3608]
[1734815352021,0.05134,97424.0,97423.0,0.3608]
[1734815352627,0.01820916,97424.0,97423.0,0.41214]
[1734815352830,0.0408,97425.0,97423.0,0.41214]
[1734815353047,0.003,97424.0,97423.0,0.41214]
[1734815353622,0.003,97424.0,97423.0,0.77294]
[1734815354018,0.008,97425.0,97423.0,0.77294]
[1734815354223,0.004,97425.0,97423.0,0.77294]
[1734815354432,0.006,97424.0,97423.0,0.77294]
[1734815355630,0.003,97424.0,97423.0,0.77294]
[1734815355827,0.006,97424.0,97423.0,0.77294]
[1734815358529,0.1522574,97442.0,97441.0,0.051331]
[1734815358838,0.1522574,97442.0,97441.0,0.412131]
[1734815359638,0.006,97442.0,97441.0,0.412131]
[1734815360736,0.015,97442.0,97441.0,0.772931]
[1734815363537,0.06633,97442.0,97441.0,0.3608]
[1734815364739,0.015,97442.0,97439.0,0.051332]
[1734815364935,0.051332,97439.0,97435.0,0.051334]
[1734815365126,0.051335,97434.0,97433.0,0.3608]
[1734815366032,0.051339,97426.0,97425.0,0.051339]
[1734815367534,0.003,97426.0,97425.0,0.051339]
[1734815369140,0.006,97426.0,97425.0,0.051339]
[1734815370443,0.051339,97425.0,97423.0,0.3608]
[1734815370836,0.09703127,97426.0,97413.0,0.3608]
[1734815371344,0.051344,97416.0,97413.0,0.3608]
[1734815371536,0.032,97415.0,97413.0,0.3608]
[1734815372039,0.032,97415.0,97414.0,0.051345]
[1734815373043,0.032,97415.0,97392.0,0.3608]
[1734815373344,0.0314,97414.0,97403.0,0.3608]
[1734815373543,0.051346,97412.0,97409.0,0.051347]
[1734815373735,0.0314,97411.0,97409.0,0.051347]
[1734815375041,0.0334,97411.0,97409.0,0.051347]
[1734815376842,0.0354,97411.0,97396.0,0.01123365]
[1734815377048,0.086747,97411.0,97409.0,0.051348]
[1734815377246,0.0354,97411.0,97409.0,0.051348]
[1734815378546,0.0334,97411.0,97409.0,0.051348]
[1734815380447,0.0354,97411.0,97409.0,0.051348]
[1734815381847,0.0354,97411.0,97401.0,0.3608]
[1734815382539,0.0354,97411.0,97402.0,0.051351]
[1734815382735,0.0354,97411.0,97403.0,0.051351]
[1734815383340,0.0334,97411.0,97403.0,0.051351]
[1734815383545,0.09116621,97409.0,97403.0,0.051351]
[1734815384142,0.05135,97405.0,97403.0,0.051351]
[1734815384753,0.09116621,97409.0,97398.0,0.051353]
[1734815385134,0.051348,97408.0,97398.0,0.051353]
[1734815385338,0.051352,97402.0,97396.0,0.00153991]
[1734815385541,0.051352,97402.0,97399.0,0.051353]
[1734815385739,0.051352,97402.0,97396.0,0.00153991]
[1734815385951,0.051352,97402.0,97400.0,0.051352]
[1734815387241,0.09216621,97405.0,97396.0,0.00153991]
[1734815387447,0.051352,97401.0,97400.0,0.001]
[1734815389043,0.001,97402.0,97401.0,0.051352]
[1734815389748,0.001,97402.0,97401.0,0.412152]
[1734815390249,0.00984652,97410.0,97401.0,0.3618]
[1734815390554,0.051347,97410.0,97408.0,0.051348]
[1734815391048,0.12135509,97411.0,97401.0,0.3618]
[1734815391241,0.051351,97403.0,97402.0,0.051351]
[1734815392946,0.051351,97403.0,97402.0,0.412151]
[1734815393250,0.051351,97403.0,97402.0,0.051351]
[1734815393551,0.052351,97403.0,97402.0,0.412151]
[1734815393946,0.052351,97403.0,97402.0,0.413151]
[1734815394142,0.052351,97403.0,97402.0,0.3618]
[1734815394343,0.052351,97403.0,97402.0,0.001]
[1734815394546,0.06248929,97403.0,97402.0,0.001]
[1734815394753,0.062492,97403.0,97402.0,0.001]
[1734815395358,0.07066908,97403.0,97402.0,0.001]
[1734815395743,0.062492,97403.0,97402.0,0.001]
[1734815395942,0.07066908,97403.0,97402.0,0.001]
[1734815396358,0.062492,97403.0,97402.0,0.001]
[1734815397162,0.06249378,97403.0,97402.0,0.001]
[1734815398358,0.07067683,97403.0,97402.0,0.001]
[1734815398862,0.22293423,97403.0,97402.0,0.001]
[1734815399164,0.2046084,97403.0,97402.0,0.001]